Cogmind - Beta 17 @@@ ROGUE MODE // 2026.06.29 @ 14:15:00 Player: beans Result: Destroyed by X-57 Shotgunner with High-powered Shotgun Performance ------------- Evolutions (2) 1000 Regions Visited (3) 600 Robots Destroyed (31) 155 Value Destroyed (954) 954 Prototype IDs (2) 40 Alien Tech Used (0) 0 Bonus (0) 0 TOTAL SCORE: 2749 Bonus ------- None Cogmind --------- Core Integrity 0/550 Matter 234/300 Energy 81/100 System Corruption 0% Temperature Cool (0) Movement Core (50) Location -8/Materials Parts ------- > --- POWER (1) -------- (None) > --- PROPULSION (3) --- (None) > --- UTILITY (3) ------ Improved Heat Sink > --- WEAPON (4) ------- (None) > --- INVENTORY (5) ---- Compact Battery (200) Compact Matter Pod (0) Compact Matter Pod (0) Compact Matter Pod (0) Compact Matter Pod (0) Peak State ------------ > --- POWER ------------ (None) > --- PROPULSION ------- Improved Flight Unit Improved Flight Unit > --- UTILITY ---------- Compact Matter Pod Compact Matter Pod > --- WEAPON ----------- Particle Gun > --- INVENTORY -------- Improved Flight Unit Large Storage Unit Improved Assault Rifle Grenade Launcher Plasma Cutter [Rating: 15] Favorites ----------- Power Light Ion Engine Engine Light Ion Engine Power Core Light Nuclear Core Propulsion Aluminum Leg Leg Aluminum Leg Wheel Compact Wheel Flight Unit Improved Flight Unit Utility Large Storage Unit Device Improved Heat Sink Storage Large Storage Unit Weapon Particle Gun Energy Gun Particle Gun Ballistic Gun Assault Rifle Launcher Grenade Launcher Build | -11 -10 -9 -8 ------- Run | Yrd Mat Mat Mat Slots Evolved 4 | . . 2 2 Power . | . . . . Propulsion 1 | . . . 1 Utility 1 | . . . 1 Weapon 2 | . . 2 . Parts Attached 22 | 5 1 8 8 Power 3 | 1 . 1 1 Engine 2 | 1 . 1 . Core 1 | . . . 1 Reactor . | . . . . Propulsion 7 | 2 . 2 3 Treads . | . . . . Leg 3 | 2 . . 1 Wheel 1 | . . . 1 Hover . | . . . . Flight 3 | . . 2 1 Utility 4 | . . 3 1 Device 1 | . . . 1 Storage 3 | . . 3 . Processor . | . . . . Hackware . | . . . . Protection . | . . . . Artifact . | . . . . Weapon 8 | 2 1 2 3 Energy Gun 4 | . . 1 3 Energy Cannon . | . . . . Ballistic Gun 3 | 2 . 1 . Ballistic Cannon . | . . . . Launcher 1 | . 1 . . Special Weapon . | . . . . Impact Weapon . | . . . . Slashing Weapon . | . . . . Piercing Weapon . | . . . . Special Melee Weapon . | . . . . Unidentified Prototypes 2 | . . 2 . Parts Lost 14 | . . 4 10 Power 3 | . . 2 1 Propulsion 4 | . . 1 3 Utility . | . . . . Weapon 7 | . . 1 6 Highest Loss Streak 5 | . . 2 5 To Critical Strikes . | . . . . Average Backups 6 | . 1 5 10 Power . | . . . . Propulsion 1 | . . 1 2 Utility 2 | . . 1 6 Weapon 1 | . 1 2 1 Tool/Special . | . . . . Unused Backups 5 | . . 2 3 Power . | . . . . Propulsion 2 | . . 2 . Utility 1 | . . . 1 Weapon 1 | . . . 1 Tool/Special 1 | . . . 1 Average Slot Usage (%) 49 | . 71 46 36 Engine 5 | . 14 3 . Leg 10 | . 28 8 . Wheel 1 | . . . 4 Flight 4 | . . 12 2 Device 1 | . . . 2 Storage 5 | . . 5 10 Energy Gun 7 | . . 2 15 Ballistic Gun 10 | . 25 8 1 Launcher 2 | . 2 5 . Peak Build Rating 15 | 5 5 15 14 Average Rating 7 | 2 5 7 9 On Entrance 6 | . 5 5 14 Avg Prop Armor Cover (%) . | . . . . Naked Turns . | . . . . Heaviest Build 30 | 6 8 24 30 Greatest Support 20 | 20 20 20 16 Greatest Overweight (x) 8 | . . 2 8 Average Overweight (x) . | . . . 1 Largest Inventory Capacity 15 | 5 5 15 15 Average Capacity 9 | 5 5 7 15 Most Carried 12 | 5 4 10 12 Average Carried 6 | . 1 5 10 Final Capacity 15 | 5 5 15 5 Final Carried 10 | . 4 10 5 Class Distribution -------------------- 91% | Mutant 8% | Scavenger-Gunner Dominant Class ---------------- Mutant | -10/Materials Mutant | -9/Materials Mutant | -8/Materials Resources | -11 -10 -9 -8 ----------- Run | Yrd Mat Mat Mat Matter Collected 728 | 200 127 74 327 Remotely . | . . . . Salvage Created 939 | . 117 367 455 Parts 50 | . 7 24 19 Haulers Intercepted 1 | . . 1 . Recyclers Shooed 1 | . 1 . . Parts Field Recycled . | . . . . Retrieved Matter . | . . . . Parts Self-Destructed . | . . . . Prevented . | . . . . Parts Restored . | . . . . Kills | -11 -10 -9 -8 ------- Run | Yrd Mat Mat Mat Combat Hostiles Destroyed 21 | . 2 10 9 Guns 10 | . 2 2 6 AOE 11 | . . 8 3 Classes Destroyed 9 | . 2 5 2 Worker 3 | . . 2 1 Builder 3 | . . 2 1 Tunneler 1 | . . 1 . Hauler 1 | . . 1 . Recycler 1 | . . . 1 Watcher 1 | . 1 . . Grunt 18 | . 2 8 8 Duelist 1 | . . . 1 Sentry 2 | . . 2 . Best Kill Streak 9 | . 1 9 6 Combat Bots Only 5 | . 1 5 4 Max Kills in Single Turn 3 | . 1 3 2 Gunslinging . | . . . . Exploded 2 | . . 2 2 Melee . | . . . . Uniques/NPCs Destroyed . | . . . . Combat | -11 -10 -9 -8 -------- Run | Yrd Mat Mat Mat Hostile Shots Fired 166 | . 18 46 102 Missed 50 | . 6 17 27 Hits 116 | . 12 29 75 Melee 4 | . . . 4 Projectile 112 | . 12 29 71 Critical Strikes 6 | . . 1 5 Damage Taken 1835 | . 152 428 1255 Core 751 | . 50 143 558 Absorbed by Shields . | . . . . Core Remaining (%) 81 | 100 80 64 . Volleys Fired 101 | . 26 33 42 Largest 3 | . 2 1 3 Hottest 195 | . 40 65 195 Shots Fired 146 | . 50 33 63 Gun 120 | . 48 14 58 Cannon . | . . . . Launcher 26 | . 2 19 5 Special . | . . . . Kinetic 64 | . 48 13 3 Thermal 56 | . . 1 55 Explosive 26 | . 2 19 5 Electromagnetic . | . . . . Robot Hit Streak 10 | . 7 6 10 Robot Miss Streak 5 | . 4 2 5 Penetration Max . | . . . . Secondary Targets . | . . . . Shots Hit Robots 90 | . 24 21 45 Core Hits 68 | . 8 27 33 Critical Kills . | . . . . Critical Parts Destroyed 1 | . 1 . . Critical Strikes 2 | . 1 . 1 Burn 1 | . . . 1 Destroy 1 | . 1 . . Melee Attacks . | . . . . Impact . | . . . . Slashing . | . . . . Piercing . | . . . . Sneak Attacks . | . . . . Combat Hostiles . | . . . . Follow-up Attacks . | . . . . Damage Inflicted 2390 | . 292 999 1099 Guns 1087 | . 250 172 665 Cannons . | . . . . Explosions 1303 | . 42 827 434 Melee . | . . . . Ramming . | . . . . Kinetic 435 | . 250 155 30 Thermal 652 | . . 17 635 Explosive 1303 | . 42 827 434 Electromagnetic . | . . . . Impact . | . . . . Slashing . | . . . . Piercing . | . . . . Highest Corruption . | . . . . Average Corruption . | . . . . Corruption Purged . | . . . . Corruption Blocked . | . . . . Overload Shots . | . . . . Overflow Damage 3 | . . 3 . Projectiles . | . . . . Explosions 3 | . . 3 . Melee . | . . . . Knockbacks . | . . . . Impact . | . . . . Kinetic . | . . . . Secondary . | . . . . Self-Inflicted Damage 75 | . 3 72 . Shots 4 | . 1 3 . Rammed . | . . . . Targets Rammed . | . . . . Kicked . | . . . . Crushed . | . . . . Highest Temperature 203 | . 16 19 203 Average Temperature 61 | . 4 9 71 Received Heat Transfer 780 | . 87 171 522 Siege Activations . | . . . . Martial Activations . | . . . . Shielding Activations . | . . . . Robots Disrupted . | . . . . Combat Hostiles . | . . . . Robots Corrupted . | . . . . Combat Hostiles . | . . . . Parts Fried . | . . . . Impact Corruptions . | . . . . Robots Melted . | . . . . Combat Hostiles . | . . . . Parts Melted 3 | . . . 3 Heat Transferred 1628 | . . 37 1591 Parts Sabotaged . | . . . . Parts Stolen . | . . . . Parts Stripped . | . . . . Power Chain Reactions . | . . . . Alert | -11 -10 -9 -8 ------- Run | Yrd Mat Mat Mat Maximum Alert Level 1 | . . 1 . Low Security (%) 80 | 100 100 29 100 Level 1 19 | . . 70 . Level 2 . | . . . . Level 3 . | . . . . Level 4 . | . . . . Level 5 . | . . . . High Security . | . . . . Max Security . | . . . . Peak Influence 291 | . 30 291 188 Initial 109 | . . . 109 Average 104 | . 6 204 114 Influence Increases 732 | . 82 401 249 Destroy 0b10 Robot/C 420 | . 40 200 180 Destroy 0b10 Robot/NC 50 | . 5 30 15 Destroy Leader 94 | . 12 52 30 Disable Machine 15 | . 15 . . Destroy Structure 108 | . 10 74 24 Lose Combat Pursuer 45 | . . 45 . Influence Decreases 634 | . 82 140 412 Entered New Map 152 | . . . 152 Time Decay 342 | . 82 100 160 Lost Part 140 | . . 40 100 Squads Dispatched 4 | . . 1 3 Investigation . | . . . . Extermination . | . . . . Reinforcement 3 | . . 1 2 Assault . | . . . . Garrison 1 | . . . 1 Intercept . | . . . . Searches Triggered . | . . . . Construction Impeded 1 | . . . 1 Haulers Reinforced . | . . . . Active Scanning Responses . | . . . . Cargo Convoy Interrupts . | . . . . Stealth | -11 -10 -9 -8 --------- Run | Yrd Mat Mat Mat Distress Signals 5 | . 2 1 2 Communications Jammed . | . . . . Distress Signals . | . . . . Times Spotted 44 | . 8 17 19 Peak Tracking Total 7 | . 3 7 7 Tactical Retreats 1 | . . 1 . Traps | -11 -10 -9 -8 ------- Run | Yrd Mat Mat Mat Traps Triggered . | . . . . Indirectly . | . . . . Trap Hack Attempts . | . . . . Triggered . | . . . . Disarmed . | . . . . Reprogrammed . | . . . . Reused . | . . . . Traps Extracted . | . . . . Installed . | . . . . Triggered . | . . . . Machines | -11 -10 -9 -8 ---------- Run | Yrd Mat Mat Mat Machines Disabled 1 | . 1 . . Max in Single Turn 1 | . 1 . . Machines Repaired . | . . . . Machines Dismantled . | . . . . Machines Sabotaged . | . . . . Overloaded Fab Kills . | . . . . Hacking | -11 -10 -9 -8 --------- Run | Yrd Mat Mat Mat Machines Accessed . | . . . . Terminals . | . . . . Fabricators . | . . . . Repair Stations . | . . . . Recycling Units . | . . . . Scanalyzers . | . . . . Garrison Access . | . . . . Total Hacks . | . . . . Successful . | . . . . Failed . | . . . . Catastrophic . | . . . . Database Lockouts . | . . . . Manual . | . . . . Terminals . | . . . . Fabricators . | . . . . Repair Stations . | . . . . Recycling Units . | . . . . Scanalyzers . | . . . . Garrison Access . | . . . . Terminal Hacks . | . . . . Fabricator Hacks . | . . . . Repair Station Hacks . | . . . . Recycling Unit Hacks . | . . . . Scanalyzer . | . . . . Garrison Access Hacks . | . . . . Unauthorized Hacks . | . . . . Terminals . | . . . . Fabricators . | . . . . Repair Stations . | . . . . Recycling Units . | . . . . Scanalyzers . | . . . . Garrison Access . | . . . . Data Cores Recovered . | . . . . Used . | . . . . Hacking Detections . | . . . . Full Trace Events . | . . . . Feedback Events . | . . . . Feedback Blocked . | . . . . Robot Schematics Acquired . | . . . . Robots Built . | . . . . Authchips . | . . . . Time . | . . . . Total Robot Build Rating . | . . . . Part Schematics Acquired . | . . . . Parts Built . | . . . . Authchips . | . . . . Time . | . . . . Total Part Build Rating . | . . . . Part Studies Acquired . | . . . . Parts Repaired . | . . . . Time . | . . . . Parts Recycled . | . . . . Recycled Matter . | . . . . Retrieved Matter . | . . . . Retrieved Components . | . . . . Parts Scanalyzed . | . . . . Part Schematics Acquired . | . . . . Parts Damaged . | . . . . Bothacking | -11 -10 -9 -8 ------------ Run | Yrd Mat Mat Mat Used RIF Installer . | . . . . Robots Hacked . | . . . . Non-combat . | . . . . Combat . | . . . . Robot Hacks Applied . | . . . . Relay Couplers Released . | . . . . Fabnet Peak Effective % . | . . . . Robots Rewired . | . . . . Allies Hacked . | . . . . Hacks Repelled . | . . . . Allies | -11 -10 -9 -8 -------- Run | Yrd Mat Mat Mat Total Allies . | . . . . Largest Group . | . . . . Highest-Rated Group . | . . . . Highest-Rated Ally . | . . . . Total Orders . | . . . . Ally Attacks . | . . . . Total Damage . | . . . . Kills . | . . . . Allies Corrupted . | . . . . Allies Melted . | . . . . Intel | -11 -10 -9 -8 ------- Run | Yrd Mat Mat Mat Active Infowar (turns) . | . . . . Robot Analysis Total . | . . . . Derelict Logs Recovered . | . . . . Drone Launches . | . . . . Drone Recoveries . | . . . . Exploration | -11 -10 -9 -8 ------------- Run | Yrd Mat Mat Mat Turns Passed 840 | 46 225 230 339 Spaces Moved 485 | 45 124 188 128 Core 38 | 25 . . 13 Treads . | . . . . Legs 188 | 20 124 43 1 Wheels 99 | . . . 99 Hover . | . . . . Flight 160 | . . 145 15 Fastest Speed 37 | 50 120 37 50 Average Speed 107 | 81 120 74 153 Slowest Speed 450 | 120 120 177 450 Overloaded Moves . | . . . . Propulsion Burnouts . | . . . . Robots Hopped 6 | . . 6 . Potential Cave-ins . | . . . . Cave-ins Triggered . | . . . . Exploration Rate (%) 18 | 4 26 29 15 Regions Visited 3 Branch Regions . Pre-discovered Areas . | . . . . Known Exits Taken . | . . . . Unknown Exits Taken 3 | 1 1 1 . Scrap Searched . | . . . . Spaces Dug 7 | . . . 7 Terrain Destroyed 154 | . 10 104 40 Melee . | . . . . Projectile . | . . . . AOE 154 | . 10 104 40 Terrain Rammed . | . . . . Walls Destroyed . | . . . . Machines Disabled . | . . . . Actions | -11 -10 -9 -8 --------- Run | Yrd Mat Mat Mat Total 660 | 54 154 239 213 Wait 14 | . . 1 13 Move 470 | 44 123 175 128 Hop 6 | . . 6 . Pick Up 27 | 5 4 10 8 Fast Attach 4 | . . 4 . Attach 20 | 5 . 3 12 Detach 6 | . . 2 4 Swap 2 | . 1 1 . Drop 10 | . . 4 6 Fire 101 | . 26 33 42 Melee . | . . . . Ram . | . . . . Kick . | . . . . Crush . | . . . . Escape Stasis . | . . . . Rewire . | . . . . Trap . | . . . . Miscellaneous . | . . . . Route ------- -11/Scrapyard -10/Materials -9/Materials -8/Materials (discovered 1 exit: [*Fac]) History --------- Turn | Location | Event 3 | -11/Scrapyard | Discovered new exit (range 15) 47 | -11/Scrapyard | Entered Materials 244 | -10/Materials | Discovered new exit (range 15) 272 | -10/Materials | Entered another Materials area 272 | -9/Materials | Evolved 2 slots: Weapon x2 301 | -9/Materials | Build established: Mutant 413 | -9/Materials | Discovered new exit (range 9) 502 | -9/Materials | Entered another Materials area 502 | -8/Materials | Evolved 2 slots: Propulsion x1, Utility x1 586 | -8/Materials | Core integrity fell below 50% 794 | -8/Materials | Garrison activated, responded to threat 832 | -8/Materials | Core integrity fell below 20% 834 | -8/Materials | Discovered new exit (range 16) 841 | -8/Materials | Destroyed by X-57 Shotgunner with High-powered Shotgun Last Messages --------------- ALERT: Activating Garrison Access M001. Y-45 Defender emerges from the garrison. Slug penetrates Wall. Penetrated by Slug. Particle Gun destroyed. Critical hit (Burn: +37). ALERT: Suspicious intruders detected, dispatching Specialist reinforcements to area. EXIT=FOUND Pressure Siphon disabled. Terminal disabled. Dropped Com. Battery. Dropped Imp. Flight Unit. Particle Gun destroyed. Com. Wheel destroyed. Imp. Flight Unit destroyed. Dropped Imp. Heat Sink. Dropped Plasma Cutter. Dropped Pulse Rifle. Dropped Lrg. Storage Unit. Map ----- +----------------------------------------------------+ | ?????????????????????????????????????????????????? | | ?????????????????????????????????????????????????? | | ?????????????????????????????????????????????????? | | ?????????????????????????????????????????????????? | | ?????????????????????????????????????????????????? | | ?????????????????????????????????????????????????? | | ?????????????????????????????????????????????????? | | ?????????????????????????????????????????????????? | | ?????????????????????????????????????????????????? | | ?????????????????????????????????????????????????? | | ?????????????????????????????????????????????????? | | ?????????????????????# ????????????????????????? | | ?????????????????????# ????????????????????????? | | ????????????????????## #???????????????????????? | | ???????????????????## ???????????????????????? | | ?????? ?????????? t ???????????????????????? | | ?????# ??????????? Y ???????????????????????? | | ?????# ?????????? ???????????????????????? | | ?????# #??????????? ???????????????????????? | | ?????# #???????????# #???????????????????????? | | ?????# #???????????# #???????????????????????? | | ?????+ /???????????# #???????????????????????? | | ?????# #???????????# #???????????????????????? | | ?????# #???????????# ##############??????????? | | ?????# #???????????# [[! #????????? | | ?????# #???????????# ![@ H#????????? | | ?????# #???????????#[=[!! x < #????????? | | ###### #???????????# %!| x #????????? | | = #???????????# ?????????? | | [ #???????????# "%"" ########?????????? | | #???????????# """" #????????????????? | | ############# """" #????????????????? | | = "" +????????????????? | | = G" #????????????????? | | = "" """ #????????????????? | | """ #????????????????? | | """ #????????????????? | | ###################### #????????????????? | | ?????????????????????# #????????????????? | | ?????????????????????# ?? #????????????????? | | ?????????????????????#!/ ???????????????????? | | ?????????????????????#// ??????????????????? | | ?????????????????????#/[ ??????????????????? | | ?????????????????????? ??????????????????? | | ?????????????????????? ???????????????????? | | ?????????????????????? ????????????????????? | | ?????????????????????? ???????????????????????? | | ??????????????????????? ?????????????????????????? | | ?????????????????????????????????????????????????? | | ?????????????????????????????????????????????????? | +----------------------------------------------------+ Best States ------------- Heat Dissipation 45 Energy Generation 10 Energy Capacity 125 Matter Stores 281 Matter Capacity 450 Sight Range 16 Terrain Scan Density 10 Evasion (%) 62 Item Schematics ----------------- None Robot Schematics ------------------ None Fabricated ------------ Nothing Repaired ---------- Nothing Studied --------- None Alien Tech Used ----------------- None Achievements -------------- None Challenges ------------ None Game ------ Seed CompactElectronSlayer Manual? 0 Play Time 00:13:42 Cumulative 357.2 hours Start 2026.06.29 @ 11:35:25 End 2026.06.29 @ 14:15:00 Sessions 2 Manual Loads 0 Difficulty Rogue Special Mode None Game No. 887 Rogue 885 Adventurer 2 Explorer 0 Win Type - Total 1 Types 1/0/0/0/0/0/0/0/0/0 Lore% 50 Gallery% 67 Achievement% 53 Wizard Run 0 Options --------- Layout 2 ASCII 0 Keyboard 0 Movement Mouse Keybinds 0 Fullscreen 1 Font 24/Smallcaps Map View 50x44 Zoom Use 0% Tactical HUD 0 Map Filters NONE Filters NONE Steam 1 RUN: d938f576-27f0-442f-9093-99aef21532ee